[Event "Festival Groningen-A 2024"]
[Site "Groningen"]
[Date "2024.12.23"]
[Round "3.14"]
[White "Ratsma, Midas"]
[Black "Nicolai, Amir"]
[Result "1/2-1/2"]
[ECO "B33"]
[WhiteElo "2326"]
[BlackElo "2156"]
[Annotator "RC"]
[PlyCount "66"]
[EventDate "2024.12.21"]
[EventType "swiss"]
[EventCountry "NED"]
[SourceTitle "playchess.com"]
[Source "ChessBase"]
[SourceQuality "1"]
[TimeControl "40/5400+30:1800+30"]

1. e4 {[%emt 0:00:03]} c5 {[%emt 0:00:04]} 2. Nf3 {[%emt 0:00:05]} Nc6 {[%emt 0:00:04]} 3. d4 {[%emt 0:00:05]} cxd4 {[%emt 0:00:04]} 4. Nxd4 {[%emt 0:00:05]} Nf6 {[%emt 0:00:04]} 5. Nc3 {[%emt 0:00:08]} e5 {[%emt 0:00:05]} 6. Ndb5 {[%emt 0:00:06]} d6 {[%emt 0:00:05]} 7. Bg5 {[%emt 0:00:05]} a6 {[%emt 0:00:06]} 8. Na3 {[%emt 0:00:04]} b5 {[%emt 0:00:04]} 9. Nab1 {[%emt 0:00:07]} Be7 {[%emt 0:00:17]} 10. Bxf6 {[%emt 0:00:10]} Bxf6 {[%emt 0:00:04]} 11. a4 {[%emt 0:00:06]} b4 {[%emt 0:05:03]} 12. Nd5 {[%emt 0:00:07]} O-O {[%emt 0:00:46]} 13. Bc4 {[%emt 0:00:03]} Rb8 {[%emt 0:08:23]} 14. O-O {[%emt 0:01:11]} Bg5 {[%emt 0:01:50]} 15. Qd3 {[%emt 0:01:10]} a5 {[%emt 0:02:58]} 16. b3 {[%emt 0:06:02]} Kh8 {[%emt 0:05:45]} 17. c3 {[%emt 0:00:21]} f5 {[%emt 0:05:21]} 18. Bb5 {[%emt 0:10:32]} fxe4 {[%emt 0:15:06]} 19. Qxe4 {[%emt 0:00:37]} Bf5 {[%emt 0:00:09]} 20. Qe1 {[%emt 0:04:06]} Ne7 {[%emt 0:09:09]} 21. Nxe7 {[%emt 0:04:06]} Qxe7 {[%emt 0:00:09]} 22. cxb4 {[%emt 0:01:21]} axb4 {[%emt 0:05:22]} 23. Qxb4 {[%emt 0:02:05]} Bd3 {[%emt 0:01:01]} 24. Nc3 {[%emt 0:07:52]} Bxf1 {[%emt 0:01:47]} 25. Rxf1 {[%emt 0:00:11]} Bd2 {[%emt 0:02:32]} 26. Nd5 {[%emt 0:01:37]} Bxb4 {[%emt 0:01:47]} 27. Nxe7 {[%emt 0:00:06]} Bc5 {[%emt 0:17:11]} 28. b4 {[%emt 0:00:04]} Bxb4 {[%emt 0:07:30]} 29. Nc6 {[%emt 0:00:12]} Bc5 {[%emt 0:00:05]} 30. Nxb8 {[%emt 0:00:12]} Rxb8 {[%emt 0:00:02]} 31. g3 {[%emt 0:01:44]} Kg8 {[%emt 0:02:08]} 32. Kg2 {[%emt 0:00:04]} Kf7 {[%emt 0:00:49]} 33. Re1 {[%emt 0:02:29]} Ke6 {[%emt 0:02:05]} 1/2-1/2

[Event "Festival Groningen-A 2024"]
[Site "Groningen"]
[Date "2024.12.23"]
[Round "3.26"]
[White "Sharma, Dinesh K."]
[Black "Noordenbos, Daan"]
[Result "1/2-1/2"]
[ECO "C90"]
[WhiteElo "2200"]
[BlackElo "2130"]
[Annotator "RC"]
[PlyCount "46"]
[EventDate "2024.12.21"]
[EventType "swiss"]
[EventCountry "NED"]
[SourceTitle "playchess.com"]
[Source "ChessBase"]
[SourceQuality "1"]
[TimeControl "40/5400+30:1800+30"]

1. e4 {[%emt 0:00:05]} e5 {[%emt 0:00:14]} 2. Nf3 {[%emt 0:00:37]} Nc6 {[%emt 0:00:08]} 3. Bb5 {[%emt 0:00:08]} a6 {[%emt 0:00:09]} 4. Ba4 {[%emt 0:00:24]} Nf6 {[%emt 0:00:21]} 5. d3 {[%emt 0:01:53]} b5 {[%emt 0:03:00]} 6. Bb3 {[%emt 0:00:20]} Be7 {[%emt 0:01:06]} 7. O-O {[%emt 0:05:39]} d6 {[%emt 0:00:23]} 8. c3 {[%emt 0:00:31]} O-O {[%emt 0:00:33]} 9. Re1 {[%emt 0:02:58]} Na5 {[%emt 0:05:41]} 10. Bc2 {[%emt 0:00:06]} c5 {[%emt 0:01:19]} 11. d4 {[%emt 0:02:25]} Bb7 {[%emt 0:19:37]} 12. d5 {[%emt 0:03:58]} Nc4 {[%emt 0:00:12]} 13. b3 {[%emt 0:01:58]} Nb6 {[%emt 0:00:07]} 14. Nbd2 {[%emt 0:00:20]} Nfxd5 {[%emt 0:00:06]} 15. exd5 {[%emt 0:01:28]} Nxd5 {[%emt 0:00:03]} 16. Bb2 {[%emt 0:05:27]} f5 {[%emt 0:01:28]} 17. Nf1 {[%emt 0:17:04]} e4 {[%emt 0:04:18]} 18. N3d2 {[%emt 0:00:11]} Nf4 {[%emt 0:11:53]} 19. f3 {[%emt 0:54:28]} Bh4 {[%emt 0:14:51]} 20. g3 {[%emt 0:00:00]} Qg5 {[%emt 0:00:35]} 21. Nxe4 {[%emt 0:00:00]} fxe4 {[%emt 0:02:18]} 22. Bxe4 {[%emt 0:00:00]} d5 {[%emt 0:00:44]} 23. Bc2 {[%emt 0:00:00]} Nh3+ {[%emt 0:03:26]} 1/2-1/2